fUSD/lending_fUSD_20260527
["ID","MTS","AMOUNT","RATE_DAILY","PERIOD"]
[423108561,1779856242000,-177.494984,0.00025,2]
[423108559,1779856242000,-151.0,0.00025,2]
[423108558,1779856242000,-171.19,0.00025,2]
[423108556,1779856242000,-171.19,0.00025,2]
[423108550,1779856242000,-351.279491,0.00025,2]
[423108548,1779856242000,-351.279491,0.00025,2]
[423108551,1779856242000,-2000.0,0.00025,4]
[423108552,1779856242000,-212.821354,0.00025,2]
[423108543,1779856242000,-527359.41796536,0.00025,2]
[423108553,1779856242000,-212.821354,0.00025,2]
[423108560,1779856242000,-151.0,0.00025,2]
[423108549,1779856242000,-351.279491,0.00025,2]
[423108557,1779856242000,-171.19,0.00025,2]
[423108577,1779856242000,-185.27268104,0.000262,2]
[423108563,1779856242000,-4133.75,0.0002569,5]
[423108566,1779856242000,-185.27268104,0.000257,2]
[423108567,1779856242000,-215.46156935,0.00025706,2]
[423108564,1779856242000,-165.619398,0.000257,2]
[423108569,1779856242000,-160.0,0.00025706,2]
[423108568,1779856242000,-208.97895572,0.00025706,2]
[423108570,1779856242000,-177.77,0.00025764,2]
[423108571,1779856242000,-422.19784731,0.00025785,2]
[423108572,1779856242000,-500.0,0.00026,2]
[423108579,1779856242000,-266.16242308,0.000265,2]
[423108574,1779856242000,-2000.0,0.00026,4]
[423108580,1779856242000,-185.27268104,0.000265,2]
[423108555,1779856242000,-212.821354,0.00025,2]
[423108565,1779856242000,-266.16242308,0.000257,2]
[423108546,1779856242000,-151.0,0.00025,2]
[423108517,1779856242000,-273.3,0.00022353,2]
[423108545,1779856242000,-151.0,0.00025,2]
[423108573,1779856242000,-266.16242308,0.00026,2]
[423108516,1779856242000,-2000.0,0.00022,4]
[423108518,1779856242000,-284.62108874,0.00022559,2]
[423108519,1779856242000,-624.04,0.00022762,2]
[423108521,1779856242000,-1100.0,0.000229,8]
[423108524,1779856242000,-796.52,0.00022933,2]
[423108523,1779856242000,-551.06,0.00022933,2]
[423108525,1779856242000,-509.01,0.00022933,2]
[423108526,1779856242000,-500.0,0.00022933,2]
[423108530,1779856242000,-362040.3660442,0.00022934,2]
[423108520,1779856242000,-500.0,0.00022762,2]
[423108529,1779856242000,-666.65553031,0.00022934,2]
[423108527,1779856242000,-1592.54,0.00022933,2]
[423108554,1779856242000,-212.821354,0.00025,2]
[423108528,1779856242000,-1592.54,0.00022933,2]
[423108534,1779856242000,-2000.0,0.00023,4]
[423108531,1779856242000,-26092.1189145,0.00022934,2]
[423108542,1779856242000,-174.69,0.00024658,2]
[423108536,1779856242000,-185.0,0.00024,2]
[423108540,1779856242000,-273.3,0.00024324,2]
[423108539,1779856242000,-5167.18,0.00024323,5]
[423108537,1779856242000,-2000.0,0.00024,4]
[423108533,1779856242000,-185.0,0.00023,2]
[423108532,1779856242000,-17447.9612596,0.00022934,2]
[423108535,1779856242000,-624.04,0.00023619,2]
[423108538,1779856242000,-10780.47968465,0.0002429,7]
[423108544,1779856242000,-185.0,0.00025,2]
[423108547,1779856242000,-351.279491,0.00025,2]
[423108541,1779856242000,-1000.0,0.00024658,2]
[423108575,1779856242000,-185.27268104,0.00026,2]
[423108522,1779856242000,-592.01,0.00022933,2]
[423108581,1779856242000,-266.16242308,0.000267,2]
[423108613,1779856242000,-268.384628,0.00027397,2]
[423108616,1779856242000,-3942.88,0.000274,14]
[423108611,1779856242000,-268.384628,0.00027397,2]
[423108612,1779856242000,-268.384628,0.00027397,2]
[423108615,1779856242000,-268.384628,0.00027397,2]
[423108608,1779856242000,-268.384628,0.00027397,2]
[423108609,1779856242000,-268.384628,0.00027397,2]
[423108621,1779856242000,-159.83,0.00027564,30]
[423108624,1779856242000,-196.43,0.00027567,30]
[423108626,1779856242000,-185.95,0.00027571,30]
[423108625,1779856242000,-252.02,0.00027569,30]
[423108623,1779856242000,-272.27,0.00027566,30]
[423108630,1779856242000,-185.95,0.00027729,7]
[423108622,1779856242000,-158.03,0.00027566,30]
[423108627,1779856242000,-272.27,0.00027725,7]
[423108631,1779856242000,-159.83,0.00027769,7]
[423108628,1779856242000,-196.43,0.00027726,7]
[423108632,1779856242000,-158.03,0.0002777,7]
[423108629,1779856242000,-252.02,0.00027728,7]
[423108633,1779856242000,-272.27,0.00027884,2]
[423108635,1779856242000,-252.02,0.00027887,2]
[423108634,1779856242000,-196.43,0.00027885,2]
[423108637,1779856242000,-159.83,0.00027974,2]
[423108641,1779856242000,-272.27,0.00028044,30]
[423108636,1779856242000,-185.95,0.00027888,2]
[423108638,1779856242000,-158.03,0.00027975,2]
[423108639,1779856242000,-2000.0,0.00028,4]
[423108640,1779856242000,-196.43,0.00028044,30]
[423108576,1779856242000,-266.16242308,0.000262,2]
[423108614,1779856242000,-268.384628,0.00027397,2]
[423108610,1779856242000,-268.384628,0.00027397,2]
[423108642,1779856242000,-252.02,0.00028046,30]
[423108619,1779856242000,-150.0,0.00027521,2]
[423108620,1779856242000,-361.0,0.00027559,2]
[423108578,1779856242000,-273.3,0.00026296,2]
[423108583,1779856242000,-284.62108874,0.00026739,2]
[423108585,1779856242000,-270.85681,0.00026739,2]
[423108592,1779856242000,-151.0,0.00027397,2]
[423108582,1779856242000,-185.27268104,0.000267,2]
[423108584,1779856242000,-1869.01914394,0.00026739,2]
[423108588,1779856242000,-167.68,0.00027161,2]
[423108586,1779856242000,-2469.20820961,0.00026884,2]
[423108591,1779856242000,-151.0,0.00027397,2]
[423108590,1779856242000,-151.0,0.00027397,2]
[423108587,1779856242000,-2000.0,0.00027,4]
[423108589,1779856242000,-218.119828,0.00027397,2]
[423108594,1779856242000,-151.0,0.00027397,2]
[423108593,1779856242000,-151.0,0.00027397,2]
[423108596,1779856242000,-151.0,0.00027397,2]
[423108599,1779856242000,-151.0,0.00027397,2]
[423108618,1779856242000,-152.13,0.000274,7]
[423108606,1779856242000,-151.0,0.00027397,2]
[423108603,1779856242000,-151.0,0.00027397,2]
[423108604,1779856242000,-151.0,0.00027397,2]
[423108602,1779856242000,-151.0,0.00027397,2]
[423108617,1779856242000,-225.81,0.000274,14]
[423108605,1779856242000,-151.0,0.00027397,2]
[423108598,1779856242000,-151.0,0.00027397,2]
[423108601,1779856242000,-271.16560797,0.00027397,2]
[423108597,1779856242000,-151.0,0.00027397,2]
[423108607,1779856242000,-151.0,0.00027397,2]
[423108600,1779856242000,-151.0,0.00027397,2]
[423108595,1779856242000,-151.0,0.00027397,2]
[423108695,1779856243000,-154.0,0.00029682,30]
[423108681,1779856243000,-193.38709412,0.00029626,2]
[423108676,1779856243000,-975.616,0.00029414,2]
[423108671,1779856243000,-999.99,0.00029009,2]
[423108685,1779856243000,-796.52,0.00029643,7]
[423108686,1779856243000,-509.01,0.00029643,2]
[423108687,1779856243000,-500.0,0.00029643,120]
[423108688,1779856243000,-624.04,0.00029644,120]
[423108690,1779856243000,-151.0,0.00029644,7]
[423108692,1779856243000,-184.12909,0.00029644,7]
[423108673,1779856243000,-167.68,0.00029232,2]
[423108675,1779856243000,-165.037,0.00029414,2]
[423108698,1779856243000,-156.0,0.00029682,30]
[423108689,1779856243000,-624.04,0.00029644,120]
[423108691,1779856243000,-184.12909,0.00029644,7]
[423108696,1779856243000,-158.0,0.00029682,30]
[423108693,1779856243000,-184.12909,0.00029644,7]
[423108707,1779856243000,-159.0,0.00029684,30]
[423108697,1779856243000,-157.0,0.00029682,30]
[423108699,1779856243000,-154.0,0.00029682,30]
[423108703,1779856243000,-157.0,0.00029684,30]
[423108700,1779856243000,-152.0,0.00029682,30]
[423108705,1779856243000,-185.0,0.00029684,30]
[423108669,1779856243000,-768.81,0.00029009,2]
[423108702,1779856243000,-151.0,0.00029684,30]
[423108694,1779856243000,-184.12909,0.00029644,7]
[423108684,1779856243000,-551.06,0.00029643,120]
[423108656,1779856243000,-183.5,0.00029,2]
[423108667,1779856243000,-150.99,0.00029009,2]
[423108701,1779856243000,-153.0,0.00029682,30]
[423108645,1779856243000,-158.03,0.0002818,30]
[423108646,1779856243000,-196.43,0.00028203,7]
[423108647,1779856243000,-272.27,0.00028203,7]
[423108644,1779856243000,-159.83,0.00028179,30]
[423108643,1779856243000,-185.95,0.00028047,30]
[423108649,1779856243000,-185.95,0.00028206,7]
[423108650,1779856243000,-273.3,0.00028267,2]
[423108651,1779856243000,-150.0,0.00028897,2]
[423108648,1779856243000,-252.02,0.00028205,7]
[423108657,1779856243000,-183.52,0.00029,2]
[423108655,1779856243000,-183.5,0.00029,2]
[423108653,1779856243000,-3942.88,0.00029,14]
[423108652,1779856243000,-167.16450666,0.00028971,2]
[423108654,1779856243000,-183.5,0.00029,2]
[423108663,1779856243000,-8443.09,0.00029,2]
[423108664,1779856243000,-8443.08,0.00029,2]
[423108659,1779856243000,-151.0,0.00029,7]
[423108661,1779856243000,-315.0,0.00029,2]
[423108658,1779856243000,-151.0,0.00029,7]
[423108662,1779856243000,-2000.0,0.00029,4]
[423108660,1779856243000,-10000.0,0.00029,2]
[423108678,1779856243000,-248.62884581,0.000295,2]
[423108677,1779856243000,-248.62884583,0.000295,2]
[423108679,1779856243000,-248.62884581,0.000295,2]
[423108683,1779856243000,-592.01,0.00029643,120]
[423108706,1779856243000,-160.0,0.00029684,30]
[423108704,1779856243000,-152.0,0.00029684,30]
[423108754,1779856243000,-314.46,0.00031846,14]
[423108741,1779856243000,-1186.0,0.00031541,5]
[423108744,1779856243000,-157.0,0.00031682,30]
[423108740,1779856243000,-282.96832727,0.00031186,7]
[423108743,1779856243000,-158.0,0.00031682,30]
[423108742,1779856243000,-154.0,0.00031682,30]
[423108745,1779856243000,-159.65507168,0.00031682,30]
[423108747,1779856243000,-152.0,0.00031682,30]
[423108757,1779856243000,-208.73947548,0.00032,120]
[423108746,1779856243000,-154.0,0.00031682,30]
[423108748,1779856243000,-153.0,0.00031682,30]
[423108752,1779856243000,-185.0,0.00031684,30]
[423108749,1779856243000,-151.0,0.00031684,30]
[423108750,1779856243000,-157.0,0.00031684,30]
[423108756,1779856243000,-624.04,0.00031919,120]
[423108751,1779856243000,-152.0,0.00031684,30]
[423108755,1779856243000,-150.0,0.00031858,2]
[423108753,1779856243000,-160.0,0.00031684,30]
[423108758,1779856243000,-188.30999285,0.00032,120]
[423108760,1779856243000,-320.0,0.00032,120]
[423108759,1779856243000,-166.24505427,0.00032,120]
[423108762,1779856243000,-194.25778938,0.00032,120]
[423108761,1779856243000,-160.71850079,0.00032,120]
[423108764,1779856243000,-1271.0,0.00032008,2]
[423108708,1779856243000,-1000.0,0.000297,7]
[423108763,1779856243000,-2000.0,0.00032,4]
[423108738,1779856243000,-338.32892556,0.00031161,2]
[423108734,1779856243000,-233.43335116,0.00031148,7]
[423108739,1779856243000,-184.8778881,0.00031161,2]
[423108736,1779856243000,-236.60698335,0.00031148,7]
[423108710,1779856243000,-2000.0,0.0003,4]
[423108711,1779856243000,-25280.76458875,0.00030024,7]
[423108720,1779856243000,-156.0,0.00030682,30]
[423108709,1779856243000,-1033.45,0.000298,5]
[423108716,1779856243000,-169.16446278,0.0003057,2]
[423108719,1779856243000,-157.0,0.00030682,30]
[423108712,1779856243000,-196.061129,0.00030137,7]
[423108737,1779856243000,-420.8639832,0.00031148,2]
[423108717,1779856243000,-154.0,0.00030682,30]
[423108713,1779856243000,-273.3,0.00030239,2]
[423108714,1779856243000,-150.0,0.00030341,2]
[423108718,1779856243000,-158.0,0.00030682,30]
[423108722,1779856243000,-152.0,0.00030682,30]
[423108715,1779856243000,-210.4319916,0.00030558,2]
[423108728,1779856243000,-160.0,0.00030684,30]
[423108733,1779856243000,-450.74,0.00031118,2]
[423108732,1779856243000,-314.46,0.00031094,7]
[423108729,1779856243000,-164.0,0.00030684,30]
[423108731,1779856243000,-2000.0,0.00031,4]
[423108726,1779856243000,-152.0,0.00030684,30]
[423108735,1779856243000,-213.13909119,0.00031148,7]
[423108730,1779856243000,-284.62108874,0.00030919,2]
[423108723,1779856243000,-153.0,0.00030682,30]
[423108724,1779856243000,-151.0,0.00030684,30]
[423108725,1779856243000,-157.0,0.00030684,30]
[423108721,1779856243000,-154.0,0.00030682,30]
[423108727,1779856243000,-185.0,0.00030684,30]
[423108828,1779856244000,-350.83,0.00033912,30]
[423108817,1779856244000,-152.0,0.00033501,3]
[423108825,1779856244000,-160.0,0.00033684,30]
[423108818,1779856244000,-158.0,0.00033682,30]
[423108826,1779856244000,-228.53078202,0.00033781,7]
[423108827,1779856244000,-320.0,0.000339,120]
[423108815,1779856244000,-1500.0,0.000334,7]
[423108821,1779856244000,-151.0,0.00033684,30]
[423108824,1779856244000,-185.0,0.00033684,30]
[423108816,1779856244000,-150.0,0.00033451,2]
[423108819,1779856244000,-167.2305698,0.00033682,30]
[423108820,1779856244000,-154.0,0.00033682,30]
[423108822,1779856244000,-157.0,0.00033684,30]
[423108823,1779856244000,-162.57354557,0.00033684,30]
[423108830,1779856244000,-150.0,0.00033987,60]
[423108867,1779856244000,-500.0,0.00033987,30]
[423108833,1779856244000,-150.0,0.00033987,60]
[423108829,1779856244000,-271.50846167,0.00033987,60]
[423108837,1779856244000,-500.0,0.00033987,30]
[423108847,1779856244000,-500.0,0.00033987,30]
[423108831,1779856244000,-150.0,0.00033987,60]
[423108835,1779856244000,-279.03905228,0.00033987,60]
[423108839,1779856244000,-500.0,0.00033987,30]
[423108843,1779856244000,-402.89210719,0.00033987,30]
[423108845,1779856244000,-528.0,0.00033987,30]
[423108849,1779856244000,-528.0,0.00033987,30]
[423108861,1779856244000,-528.0,0.00033987,30]
[423108863,1779856244000,-500.0,0.00033987,30]
[423108853,1779856244000,-500.0,0.00033987,30]
[423108813,1779856244000,-215.14439636,0.00033214,30]
[423108841,1779856244000,-500.0,0.00033987,30]
[423108812,1779856244000,-215.14439636,0.00033214,30]
[423108767,1779856244000,-273.3,0.0003221,5]
[423108810,1779856244000,-215.14439636,0.00033214,30]
[423108765,1779856244000,-519.0,0.00032008,2]
[423108770,1779856244000,-928.0,0.00032414,2]
[423108769,1779856244000,-169.768,0.00032281,32]
[423108771,1779856244000,-314.46,0.00032598,30]
[423108768,1779856244000,-1916.454,0.00032281,32]
[423108766,1779856244000,-1237.085,0.00032008,2]
[423108773,1779856244000,-157.0,0.00032682,30]
[423108784,1779856244000,-185.0,0.00032684,30]
[423108783,1779856244000,-152.0,0.00032684,30]
[423108786,1779856244000,-160.0,0.00032684,30]
[423108788,1779856244000,-1940.36,0.00032877,30]
[423108776,1779856244000,-154.0,0.00032682,30]
[423108781,1779856244000,-157.0,0.00032684,30]
[423108790,1779856244000,-3942.88,0.000329,14]
[423108777,1779856244000,-155.0,0.00032682,30]
[423108775,1779856244000,-157.0,0.00032682,30]
[423108779,1779856244000,-151.0,0.00032684,30]
[423108772,1779856244000,-450.75,0.00032674,2]
[423108778,1779856244000,-154.0,0.00032682,30]
[423108774,1779856244000,-158.0,0.00032682,30]
[423108792,1779856244000,-208.73947548,0.00033,120]
[423108794,1779856244000,-188.30999285,0.00033,120]
[423108796,1779856244000,-166.24505427,0.00033,120]
[423108798,1779856244000,-320.0,0.00033,120]
[423108800,1779856244000,-160.71850079,0.00033,120]
[423108802,1779856244000,-194.25778938,0.00033,120]
[423108814,1779856244000,-314.46,0.0003335,30]
[423108804,1779856244000,-2000.0,0.00033,4]
[423108806,1779856244000,-215.14439636,0.00033214,30]
[423108808,1779856244000,-215.14439636,0.00033214,30]
[423108869,1779856244000,-500.0,0.00033987,30]
[423108974,1779856244000,-500.0,0.00033987,30]
[423108851,1779856244000,-500.0,0.00033987,30]
[423108943,1779856244000,-500.0,0.00033987,30]
[423108932,1779856244000,-500.0,0.00033987,30]
[423108933,1779856244000,-500.0,0.00033987,30]
[423108930,1779856244000,-500.0,0.00033987,30]
[423108947,1779856244000,-500.0,0.00033987,30]
[423108935,1779856244000,-528.0,0.00033987,30]
[423108937,1779856244000,-500.0,0.00033987,30]
[423108949,1779856244000,-500.0,0.00033987,30]
[423108945,1779856244000,-500.0,0.00033987,30]
[423108953,1779856244000,-500.0,0.00033987,30]
[423108951,1779856244000,-500.0,0.00033987,30]
[423108955,1779856244000,-528.0,0.00033987,30]
[423108957,1779856244000,-500.0,0.00033987,30]
[423108959,1779856244000,-500.0,0.00033987,30]
[423108963,1779856244000,-157.41168238,0.00033987,30]
[423108970,1779856244000,-500.0,0.00033987,30]
[423108968,1779856244000,-500.0,0.00033987,30]
[423108976,1779856244000,-500.0,0.00033987,30]
[423108966,1779856244000,-500.0,0.00033987,30]
[423108961,1779856244000,-500.0,0.00033987,30]
[423108972,1779856244000,-528.0,0.00033987,30]
[423108964,1779856244000,-500.0,0.00033987,30]
[423108978,1779856244000,-439.48495491,0.00033987,30]
[423108980,1779856244000,-528.0,0.00033987,30]
[423108984,1779856244000,-528.0,0.00033987,30]
[423108982,1779856244000,-528.0,0.00033987,30]
[423108986,1779856244000,-528.0,0.00033987,30]
[423108866,1779856244000,-528.0,0.00033987,30]
[423108990,1779856244000,-533.92063898,0.00033987,30]
[423108941,1779856244000,-500.0,0.00033987,30]
[423108928,1779856244000,-500.0,0.00033987,30]
[423108988,1779856244000,-528.0,0.00033987,30]
[423108924,1779856244000,-528.0,0.00033987,30]
[423108939,1779856244000,-500.0,0.00033987,30]
[423108855,1779856244000,-528.0,0.00033987,30]
[423108860,1779856244000,-500.0,0.00033987,30]
[423108871,1779856244000,-218.39893225,0.00033987,30]
[423108873,1779856244000,-500.0,0.00033987,30]
[423108875,1779856244000,-500.0,0.00033987,30]
[423108877,1779856244000,-528.0,0.00033987,30]
[423108885,1779856244000,-500.0,0.00033987,30]
[423108891,1779856244000,-500.0,0.00033987,30]
[423108889,1779856244000,-528.0,0.00033987,30]
[423108887,1779856244000,-500.0,0.00033987,30]
[423108883,1779856244000,-528.0,0.00033987,30]
[423108881,1779856244000,-500.0,0.00033987,30]
[423108879,1779856244000,-458.55382649,0.00033987,30]
[423108893,1779856244000,-528.0,0.00033987,30]
[423108857,1779856244000,-500.0,0.00033987,30]
[423108895,1779856244000,-150.0,0.00033987,30]
[423108899,1779856244000,-164.66146701,0.00033987,30]
[423108926,1779856244000,-267.19449444,0.00033987,30]
[423108901,1779856244000,-500.0,0.00033987,30]
[423108918,1779856244000,-500.0,0.00033987,30]
[423108916,1779856244000,-180.65416299,0.00033987,30]
[423108904,1779856244000,-528.0,0.00033987,30]
[423108922,1779856244000,-500.0,0.00033987,30]
[423108920,1779856244000,-528.0,0.00033987,30]
[423108905,1779856244000,-519.45495847,0.00033987,30]
[423108908,1779856244000,-150.0,0.00033987,30]
[423108910,1779856244000,-528.0,0.00033987,30]
[423108914,1779856244000,-528.0,0.00033987,30]
[423108912,1779856244000,-150.0,0.00033987,30]
[423108897,1779856244000,-528.0,0.00033987,30]
[423109062,1779856245000,-500.0,0.00033987,30]
[423109063,1779856245000,-500.0,0.00033987,30]
[423109059,1779856245000,-500.0,0.00033987,30]
[423109057,1779856245000,-500.0,0.00033987,30]
[423109056,1779856245000,-500.0,0.00033987,30]
[423109055,1779856245000,-500.0,0.00033987,30]
[423109058,1779856245000,-500.0,0.00033987,30]
[423109049,1779856245000,-500.0,0.00033987,30]
[423109061,1779856245000,-150.0,0.00033987,30]
[423109053,1779856245000,-500.0,0.00033987,2]
[423109073,1779856245000,-585.0,0.00033987,30]
[423109052,1779856245000,-500.0,0.00033987,2]
[423109060,1779856245000,-500.0,0.00033987,30]
[423109070,1779856245000,-152.7915746,0.00033987,30]
[423109065,1779856245000,-244.82538177,0.00033987,30]
[423109067,1779856245000,-150.0,0.00033987,30]
[423109085,1779856245000,-585.0,0.00033987,30]
[423109068,1779856245000,-150.0,0.00033987,30]
[423109066,1779856245000,-150.0,0.00033987,2]
[423109072,1779856245000,-500.0,0.00033987,30]
[423109069,1779856245000,-150.0,0.00033987,30]
[423109075,1779856245000,-585.0,0.00033987,30]
[423109074,1779856245000,-500.0,0.00033987,30]
[423108995,1779856245000,-492.0,0.00033987,30]
[423109077,1779856245000,-585.0,0.00033987,30]
[423109076,1779856245000,-500.0,0.00033987,30]
[423109054,1779856245000,-501.31324626,0.00033987,2]
[423109064,1779856245000,-585.82824268,0.00033987,30]
[423109051,1779856245000,-500.0,0.00033987,2]
[423109010,1779856245000,-492.0,0.00033987,30]
[423109041,1779856245000,-500.0,0.00033987,30]
[423108993,1779856245000,-492.0,0.00033987,30]
[423108991,1779856245000,-492.0,0.00033987,30]
[423109001,1779856245000,-492.0,0.00033987,30]
[423109002,1779856245000,-150.0,0.00033987,30]
[423108999,1779856245000,-150.0,0.00033987,30]
[423108997,1779856245000,-492.0,0.00033987,30]
[423109004,1779856245000,-492.0,0.00033987,30]
[423109006,1779856245000,-289.47724845,0.00033987,30]
[423109020,1779856245000,-492.0,0.00033987,30]
[423109008,1779856245000,-492.0,0.00033987,30]
[423109018,1779856245000,-492.0,0.00033987,30]
[423109024,1779856245000,-492.0,0.00033987,30]
[423109014,1779856245000,-492.0,0.00033987,30]
[423109026,1779856245000,-492.0,0.00033987,30]
[423109022,1779856245000,-492.0,0.00033987,30]
[423109016,1779856245000,-492.0,0.00033987,30]
[423109012,1779856245000,-492.0,0.00033987,30]
[423109030,1779856245000,-492.0,0.00033987,30]
[423109032,1779856245000,-492.0,0.00033987,30]
[423109028,1779856245000,-492.0,0.00033987,30]
[423109034,1779856245000,-492.0,0.00033987,30]
[423109035,1779856245000,-492.0,0.00033987,30]
[423109038,1779856245000,-492.0,0.00033987,30]
[423109039,1779856245000,-511.7163428,0.00033987,30]
[423109045,1779856245000,-500.0,0.00033987,30]
[423109043,1779856245000,-500.0,0.00033987,30]
[423109036,1779856245000,-492.0,0.00033987,30]
[423109050,1779856245000,-430.75105378,0.00033987,30]
[423109083,1779856245000,-377.82456961,0.00033987,30]
[423109071,1779856245000,-500.0,0.00033987,30]
[423109080,1779856245000,-500.0,0.00033987,30]
[423109121,1779856245000,-158.0,0.00034682,30]
[423109116,1779856245000,-314.46,0.00034102,30]
[423109119,1779856245000,-150.0,0.00034453,2]
[423109120,1779856245000,-150.0,0.00034453,2]
[423109115,1779856245000,-2497.08810808,0.00034,4]
[423109124,1779856245000,-157.0,0.00034684,30]
[423109118,1779856245000,-150.0,0.00034453,2]
[423109125,1779856245000,-185.0,0.00034684,30]
[423109117,1779856245000,-273.3,0.00034182,7]
[423109123,1779856245000,-151.0,0.00034684,30]
[423109122,1779856245000,-154.0,0.00034682,30]
[423109133,1779856245000,-1524.91555555,0.0003496,2]
[423109139,1779856245000,-208.97895572,0.00035,120]
[423109131,1779856245000,-471.2104,0.000349,120]
[423109130,1779856245000,-314.46,0.00034854,30]
[423109132,1779856245000,-150.0,0.000349,30]
[423109135,1779856245000,-385.03625985,0.00035,31]
[423109137,1779856245000,-44750.47640949,0.00035,7]
[423109128,1779856245000,-500.0,0.00034767,2]
[423109134,1779856245000,-624.04,0.00034999,120]
[423109136,1779856245000,-320.0,0.00035,120]
[423109138,1779856245000,-150.0,0.00035,4]
[423109127,1779856245000,-160.0,0.00034684,30]
[423109141,1779856245000,-151.0,0.00035,7]
[423109142,1779856245000,-151.0,0.00035,7]
[423109140,1779856245000,-1971520.47,0.00035,2]
[423109081,1779856245000,-500.0,0.00033987,30]
[423109113,1779856245000,-510.81376813,0.00033987,30]
[423109114,1779856245000,-11438.18007928,0.00034,120]
[423109078,1779856245000,-500.0,0.00033987,30]
[423109107,1779856245000,-500.0,0.00033987,30]
[423109079,1779856245000,-585.0,0.00033987,30]
[423109112,1779856245000,-500.0,0.00033987,30]
[423109082,1779856245000,-585.0,0.00033987,30]
[423109084,1779856245000,-500.0,0.00033987,30]
[423109086,1779856245000,-508.00396675,0.00033987,30]
[423109088,1779856245000,-585.0,0.00033987,30]
[423109089,1779856245000,-500.0,0.00033987,30]
[423109090,1779856245000,-585.0,0.00033987,30]
[423109091,1779856245000,-500.0,0.00033987,30]
[423109094,1779856245000,-585.0,0.00033987,30]
[423109096,1779856245000,-585.0,0.00033987,30]
[423109095,1779856245000,-500.0,0.00033987,30]
[423109093,1779856245000,-500.0,0.00033987,30]
[423109092,1779856245000,-585.0,0.00033987,30]
[423109087,1779856245000,-585.0,0.00033987,30]
[423109098,1779856245000,-585.0,0.00033987,30]
[423109097,1779856245000,-500.0,0.00033987,30]
[423109102,1779856245000,-585.0,0.00033987,30]
[423109099,1779856245000,-500.0,0.00033987,30]
[423109103,1779856245000,-500.0,0.00033987,30]
[423109110,1779856245000,-585.0,0.00033987,30]
[423109109,1779856245000,-500.0,0.00033987,30]
[423109108,1779856245000,-242.77531095,0.00033987,30]
[423109105,1779856245000,-150.0,0.00033987,30]
[423109104,1779856245000,-585.0,0.00033987,30]
[423109106,1779856245000,-150.0,0.00033987,30]
[423109111,1779856245000,-500.0,0.00033987,30]
[423109100,1779856245000,-585.0,0.00033987,30]
[423109101,1779856245000,-500.0,0.00033987,30]
[423109192,1779856246000,-950.32029804,0.00035438,2]
[423109189,1779856246000,-300.0,0.00035438,2]
[423109184,1779856246000,-150.0,0.00035189,2]
[423109187,1779856246000,-300.0,0.00035438,2]
[423109182,1779856246000,-284.62108874,0.000351,2]
[423109180,1779856246000,-151.0,0.00035,7]
[423109169,1779856246000,-212.821354,0.00035,7]